fUSD/lending_fUSD_20240530
["ID","MTS","AMOUNT","RATE_DAILY","PERIOD"]
[328212493,1717062634168,-500.0,0.00029129,7]
[328212494,1717062634178,-500.0,0.00029129,7]
[328212495,1717062634190,-500.0,0.00029129,7]
[328212496,1717062634199,-150.0,0.00029129,7]
[328212497,1717062634209,-309.20634418,0.00029129,7]
[328212498,1717062634218,-500.0,0.00029129,7]
[328212499,1717062634228,-500.0,0.00029129,7]
[328212500,1717062634239,-500.0,0.00029129,7]
[328212501,1717062634251,-500.0,0.00029129,7]
[328212502,1717062634260,-2293.29,0.00029129,7]
[328212503,1717062634269,-651.5,0.00029129,7]
[328212504,1717062634279,-522.3,0.00029129,7]
[328212505,1717062634289,-500.0,0.00029129,7]
[328212506,1717062634298,-686.97,0.00029129,7]
[328212507,1717062634308,-500.0,0.00029129,7]
[328212508,1717062634318,-257.84824292,0.00029129,7]
[328212509,1717062634327,-500.4355464,0.00029129,7]
[328212510,1717062634337,-500.0,0.00029129,7]
[328212511,1717062634510,-500.0,0.00029129,7]
[328212512,1717062634519,-500.0,0.00029129,7]
[328212513,1717062634529,-654.11,0.00029129,7]
[328212514,1717062634539,-530.91,0.00029129,7]
[328212515,1717062634548,-500.0,0.00029129,7]
[328212516,1717062634557,-500.0,0.00029129,7]
[328212517,1717062634566,-500.0,0.00029129,7]
[328212518,1717062634576,-448.56435279,0.00029129,7]
[328212519,1717062634586,-308.85870453,0.00029129,7]
[328212520,1717062634595,-500.0,0.00029129,7]
[328212521,1717062634604,-500.0,0.00029129,7]
[328212522,1717062634613,-500.0,0.00029129,7]
[328212523,1717062634623,-986.12,0.00029129,7]
[328212524,1717062634632,-600.85,0.00029129,7]
[328212525,1717062634642,-917.34,0.00029129,7]
[328212526,1717062634651,-500.0,0.00029129,7]
[328212527,1717062634662,-181.57866625,0.00029129,7]
[328212528,1717062634672,-500.0,0.00029129,7]
[328212529,1717062634682,-500.0,0.00029129,7]
[328212530,1717062634693,-500.0,0.00029129,7]
[328212531,1717062634702,-500.0,0.00029129,7]
[328212532,1717062634711,-500.0,0.00029129,7]
[328212533,1717062634720,-500.0,0.00029129,7]
[328212534,1717062634729,-500.0,0.00029129,7]
[328212535,1717062634738,-500.0,0.00029129,7]
[328212536,1717062634748,-671.66,0.00029129,7]
[328212537,1717062634757,-1125.86,0.00029129,7]
[328212538,1717062634766,-672.63,0.00029129,7]
[328212539,1717062634775,-874.06,0.00029129,7]
[328212540,1717062634784,-500.0,0.00029129,7]
[328212541,1717062634793,-500.0,0.00029129,7]
[328212542,1717062634802,-500.0,0.00029129,7]
[328212543,1717062634811,-272.24935207,0.00029129,7]
[328212544,1717062634821,-500.0,0.00029129,7]
[328212545,1717062634830,-500.0,0.00029129,7]
[328212546,1717062634839,-500.0,0.00029129,7]
[328212547,1717062634849,-500.0,0.00029129,7]
[328212548,1717062634859,-1019.04,0.00029129,7]
[328212549,1717062634870,-500.0,0.00029129,7]
[328212550,1717062634879,-628.71,0.00029129,7]
[328212551,1717062634889,-500.0,0.00029129,7]
[328212552,1717062634898,-500.0,0.00029129,7]
[328212553,1717062634906,-500.0,0.00029129,7]
[328212554,1717062634916,-500.0,0.00029129,7]
[328212555,1717062634925,-500.0,0.00029129,7]
[328212556,1717062634934,-500.0,0.00029129,7]
[328212557,1717062634944,-500.0,0.00029129,7]
[328212558,1717062634952,-500.0,0.00029129,7]
[328212559,1717062634962,-500.0,0.00029129,7]
[328212560,1717062634971,-500.0,0.00029129,7]
[328212561,1717062634980,-500.0,0.00029129,7]
[328212562,1717062634990,-500.0,0.00029129,7]
[328212563,1717062634999,-573.43,0.00029129,7]
[328212564,1717062635008,-1522.43,0.00029129,7]
[328212565,1717062635018,-500.0,0.00029129,7]
[328212566,1717062635027,-500.0,0.00029129,7]
[328212567,1717062635036,-500.0,0.00029129,7]
[328212568,1717062635045,-500.0,0.00029129,7]
[328212569,1717062635055,-500.0,0.00029129,7]
[328212570,1717062635064,-500.0,0.00029129,7]
[328212571,1717062635073,-500.0,0.00029129,7]
[328212572,1717062635082,-500.0,0.00029129,7]
[328212573,1717062635091,-500.0,0.00029129,7]
[328212574,1717062635101,-500.0,0.00029129,7]
[328212575,1717062635110,-500.0,0.00029129,7]
[328212576,1717062635119,-627.9066811,0.00029129,7]
[328212577,1717062635129,-500.0,0.00029129,7]
[328212578,1717062635138,-544.4,0.00029129,7]
[328212579,1717062635147,-500.0,0.00029129,7]
[328212580,1717062635156,-403.83049265,0.00029129,7]
[328212581,1717062635166,-500.0,0.00029129,7]
[328212582,1717062635175,-157.3444344,0.00029129,7]
[328212583,1717062635184,-500.0,0.00029129,7]
[328212584,1717062635196,-500.0,0.00029129,7]
[328212585,1717062635206,-876.98,0.00029129,7]
[328212586,1717062635216,-500.0,0.00029129,7]
[328212587,1717062635226,-500.0,0.00029129,7]
[328212588,1717062635236,-500.0,0.00029129,7]
[328212589,1717062635247,-500.0,0.00029129,7]
[328212590,1717062635257,-500.0,0.00029129,7]
[328212591,1717062635267,-563.86,0.00029129,7]
[328212592,1717062635278,-500.0,0.00029129,7]
[328212593,1717062635288,-500.0,0.00029129,7]
[328212594,1717062635297,-338.0,0.0002913,5]
[328212595,1717062635307,-127679.83174947,0.0002913,13]
[328212596,1717062635322,-398682.45493716,0.0002913,13]
[328212597,1717062635332,-244346.58937845,0.0002913,10]
[328212598,1717062635343,-732.91429086,0.0002913,10]
[328212599,1717062635358,-22412.57131181,0.0002913,10]
[328212600,1717062635371,-825.99999941,0.0002913,10]
[328212601,1717062635400,-926.58736628,0.0002913,10]
[328212604,1717062638175,-207.80133692,0.00017133,2]
[328212605,1717062638185,-316.06968877,0.00027992,2]
[328212606,1717062638196,-683.93031123,0.00027992,2]
[328212607,1717062638205,-150.0,0.00028146,2]
[328212608,1717062638214,-150.0,0.0002829,2]
[328212609,1717062638222,-150.0,0.00028552,2]
[328212610,1717062638231,-150.0,0.00028848,2]
[328212611,1717062638240,-500.0,0.00029129,7]
[328212612,1717062638250,-4035.89429656,0.0002913,10]
[328212613,1717062638261,-17452.26548079,0.0002913,10]
[328212614,1717062638273,-645.28032714,0.0002913,10]
[328212615,1717062638284,-4070.08297907,0.0002913,10]
[328212616,1717062638328,-340.375,0.0002913,10]
[328212617,1717062638340,-1326.63313808,0.0002913,10]
[328212618,1717062638356,-1530.03477773,0.0002913,10]
[328212619,1717062638368,-669.22858176,0.0002913,10]
[328212620,1717062638379,-1041.97956162,0.0002913,10]
[328212621,1717062638473,-1512.690657,0.0002913,10]
[328212623,1717062638484,-381.33465368,0.0002913,10]
[328212628,1717062640695,-9043.98542478,0.0002913,10]
[328212630,1717062640821,-500.0,0.00029129,7]
[328212631,1717062640831,-8687.49999993,0.0002913,10]
[328212632,1717062640946,-269.54288353,0.0002913,10]
[328212633,1717062641077,-1584.01465813,0.0002913,10]
[328212634,1717062641089,-1118.60062283,0.0002913,10]
[328212635,1717062641813,-359.48000001,0.00029129,7]
[328212636,1717062641825,-140.51999999,0.00029129,7]
[328212637,1717062641835,-1184.51253681,0.0002913,10]
[328212638,1717062641846,-4787.60845591,0.0002913,10]
[328212641,1717062643153,-14769.13527981,0.0002913,10]
[328212642,1717062643275,-19927.91478871,0.0002913,10]
[328212643,1717062643398,-18665.73616508,0.0002913,10]
[328212644,1717062643411,-4548.11877267,0.0002913,10]
[328212645,1717062643727,-500.0,0.00029129,7]
[328212646,1717062643737,-115.81819262,0.00029129,7]
[328212648,1717062646048,-206.4857044,0.00029128,2]
[328212651,1717062646058,-155.0,0.00029128,2]
[328212654,1717062646067,-384.18180738,0.00029129,7]
[328212656,1717062646076,-28.64105737,0.00029129,2]
[328212660,1717062646186,-3697.26740842,0.00029129,2]
[328212661,1717062646195,-500.0,0.00029129,7]
[328212662,1717062646206,-500.0,0.00029129,7]
[328212663,1717062646215,-368277.25846586,0.0002913,10]
[328212664,1717062646227,-1246.58900404,0.0002913,10]
[328212665,1717062646241,-9335.30571165,0.0002913,10]
[328212666,1717062646341,-500.0,0.00029129,7]
[328212667,1717062646353,-103380.93362785,0.0002913,10]
[328212669,1717062656945,159.91,0.00013973,2]
[328212670,1717062687700,946.5832297,0.00013973,2]
[328212673,1717062705553,713.15762672,0.00013973,2]
[328212677,1717063085338,200.0,0.00031412,120]
[328212679,1717063166116,206.20981,0.00031172,120]
[328212690,1717063832492,-3411.40281369,0.00017012,2]
[328212691,1717063832504,-7544.67440842,0.00017012,2]
[328212692,1717063832514,-2366.22973263,0.00017013,2]
[328212693,1717063832524,-150.0,0.00017013,2]
[328212694,1717063832534,-210.0,0.00018714,2]
[328212695,1717063832543,-252.71,0.00025025,2]
[328212696,1717063832554,-150.99,0.00025025,2]
[328212697,1717063832563,-150.99,0.00026129,2]
[328212698,1717063832573,-250.0,0.00026896,2]
[328212699,1717063832583,-460.44,0.00026943,2]
[328212700,1717063832592,-209.94,0.00027111,2]
[328212701,1717063832601,-252.71,0.00027289,2]
[328212702,1717063832611,-250.0,0.00027402,2]
[328212703,1717063832621,-800.0,0.00027471,2]
[328212704,1717063832630,-1000.01492013,0.0002801,2]
[328212705,1717063832640,-38006.14049491,0.0002802,2]
[328212706,1717063832650,-265.67590997,0.00028021,2]
[328212707,1717063832660,-150.0,0.00028329,2]
[328212708,1717063832669,-150.0,0.00028342,2]
[328212709,1717063832678,-1515.0,0.000284,2]
[328212710,1717063832688,-150.0,0.00028447,2]
[328212711,1717063832697,-150.0,0.00028537,2]
[328212712,1717063832707,-150.0,0.00028557,2]
[328212713,1717063832716,-150.0,0.00028569,2]
[328212714,1717063832725,-150.0,0.00028655,2]
[328212715,1717063832735,-150.0,0.00028666,2]
[328212716,1717063832745,-150.0,0.00028771,2]
[328212717,1717063832754,-252.27923315,0.00028836,2]
[328212718,1717063832763,-150.0,0.00028897,2]
[328212719,1717063832773,-11402.84929633,0.000289,10]
[328212720,1717063832783,-150.0,0.0002892,2]
[328212721,1717063832793,-1283.20963648,0.0002893,2]
[328212722,1717063832807,-500.0,0.00029,2]
[328212724,1717063832817,-150.0,0.00029004,2]
[328212726,1717063832826,-150.0,0.00029012,2]
[328212727,1717063832835,-869.92,0.00029019,3]
[328212728,1717063832844,-150.0,0.00029024,2]
[328212729,1717063832854,-2500.0,0.00029028,2]
[328212730,1717063832864,-1000.0,0.00029028,2]
[328212731,1717063832874,-150.0,0.00029029,2]
[328212732,1717063832883,-1353.13173429,0.00029029,2]
[328212733,1717063832893,-65162.06674707,0.00029029,2]
[328212734,1717063832905,-648.56657786,0.00029029,2]
[328212735,1717063832921,-300.0,0.00029029,2]
[328212736,1717063832932,-493.24463353,0.00029029,2]
[328212737,1717063832943,-697.11121979,0.00029029,2]
[328212738,1717063832955,-3023.92112175,0.00029029,2]
[328212739,1717063832965,-325.46919722,0.0002903,2]
[328212740,1717063832974,-5754.7993846,0.0002903,2]
[328212741,1717063832985,-2290.60563963,0.0002903,2]
[328212742,1717063832995,-1551.6,0.0002903,2]
[328212743,1717063833005,-7500.0,0.0002903,2]
[328212744,1717063833014,-157.12448071,0.00029031,2]
[328212745,1717063833024,-5000.0,0.00029032,2]
[328212746,1717063833034,-150.0,0.00029033,2]
[328212747,1717063833043,-5416.98961561,0.00029039,2]
[328212748,1717063833053,-165.56902189,0.00029039,2]
[328212749,1717063833063,-465.02822462,0.00029039,2]
[328212750,1717063833072,-1100.9119571,0.00029039,2]
[328212751,1717063833082,-2981.9616613,0.00029119,2]
[328212752,1717063833093,-261.62382088,0.00029119,2]
[328212753,1717063833104,-629.99914214,0.00029119,2]
[328212754,1717063833116,-364.7,0.00029119,2]
[328212755,1717063833127,-2925.29214638,0.00029119,2]
[328212756,1717063833138,-1629.5540916,0.00029119,2]
[328212757,1717063833147,-292.4676402,0.00029119,2]
[328212758,1717063833157,-150.7,0.0002912,2]
[328212759,1717063833166,-150.7,0.0002912,2]
[328212760,1717063833176,-150.7,0.0002912,2]
[328212761,1717063833185,-150.7,0.0002912,2]
[328212762,1717063833195,-150.7,0.0002912,2]
[328212763,1717063833204,-150.7,0.0002912,2]
[328212764,1717063833213,-150.7,0.0002912,2]
[328212765,1717063833223,-150.7,0.0002912,2]
[328212766,1717063833233,-558.70208414,0.00029127,7]
[328212767,1717063833242,-500.0,0.00029127,7]
[328212768,1717063833251,-500.0,0.00029127,7]
[328212769,1717063833261,-644.6,0.00029127,7]
[328212770,1717063833270,-500.0,0.00029127,7]
[328212771,1717063833281,-500.0,0.00029127,7]
[328212772,1717063833291,-500.0,0.00029127,7]
[328212773,1717063833300,-633.62631123,0.00029127,7]
[328212774,1717063833310,-500.0,0.00029127,7]
[328212775,1717063833319,-500.0,0.00029127,7]
[328212776,1717063833329,-500.0,0.00029127,7]
[328212777,1717063833338,-500.0,0.00029127,7]
[328212778,1717063833348,-500.0,0.00029127,7]
[328212779,1717063833357,-500.0,0.00029127,7]
[328212780,1717063833366,-1224.3201855,0.00029127,7]
[328212781,1717063833378,-234.6798145,0.00029127,7]
[328212782,1717063833389,-500.0,0.00029127,7]
[328212783,1717063833398,-504.55831391,0.00029127,7]
[328212784,1717063833407,-500.0,0.00029127,7]
[328212785,1717063833417,-106.05349726,0.00029127,7]
[328212786,1717063833428,-393.94650274,0.00029127,7]
[328212787,1717063833438,-500.0,0.00029127,7]
[328212788,1717063833447,-236.90245384,0.00029128,2]
[328212789,1717063833457,-242.09799351,0.00029128,2]
[328212790,1717063833466,-207.23998975,0.00029128,2]
[328212791,1717063833475,-162.68083888,0.00029128,2]
[328212792,1717063833485,-306.81904967,0.00029128,2]
[328212793,1717063833494,-500.0,0.00029128,7]
[328212794,1717063833503,-500.0,0.00029128,7]
[328212795,1717063833512,-500.0,0.00029128,7]
[328212796,1717063833521,-500.0,0.00029128,7]
[328212797,1717063833531,-500.0,0.00029128,7]
[328212798,1717063833540,-500.0,0.00029128,7]
[328212799,1717063833551,-589.08,0.00029128,7]
[328212800,1717063833560,-500.0,0.00029128,7]
[328212801,1717063833570,-500.0,0.00029128,7]
[328212802,1717063833579,-500.0,0.00029128,7]
[328212803,1717063833588,-500.0,0.00029128,7]
[328212804,1717063833597,-500.0,0.00029128,2]
[328212805,1717063833606,-500.0,0.00029128,7]
[328212806,1717063833615,-500.0,0.00029128,7]
[328212807,1717063833624,-500.0,0.00029128,7]
[328212808,1717063833634,-500.0,0.00029128,7]
[328212809,1717063833643,-500.0,0.00029128,7]
[328212810,1717063833653,-500.0,0.00029128,7]
[328212811,1717063833663,-500.0,0.00029128,7]
[328212812,1717063833672,-636.23,0.00029128,7]
[328212813,1717063833682,-500.0,0.00029128,7]
[328212814,1717063833691,-500.0,0.00029128,7]
[328212815,1717063833700,-460.9786812,0.00029128,7]
[328212816,1717063833713,-39.86244835,0.00029128,7]
[328212817,1717063833722,-500.0,0.00029128,7]
[328212818,1717063833731,-500.0,0.00029128,7]
[328212819,1717063833741,-500.0,0.00029128,7]
[328212820,1717063833750,-500.0,0.00029128,7]
[328212821,1717063833760,-500.0,0.00029128,7]
[328212822,1717063833769,-500.0,0.00029128,7]
[328212823,1717063833778,-500.0,0.00029128,7]
[328212824,1717063833787,-150.0,0.00029128,7]
[328212825,1717063833797,-424.06070113,0.00029128,7]
[328212826,1717063833812,-500.0,0.00029128,7]
[328212827,1717063833821,-500.0,0.00029128,7]
[328212828,1717063833831,-500.0,0.00029128,7]
[328212829,1717063833840,-500.0,0.00029128,7]
[328212830,1717063833850,-500.0,0.00029128,7]
[328212831,1717063833860,-624.36,0.00029128,7]
[328212832,1717063833869,-500.0,0.00029128,7]
[328212833,1717063833881,-501.68236615,0.00029128,7]
[328212834,1717063833894,-1696.04763385,0.00029128,7]
[328212835,1717063833904,-500.0,0.00029128,7]
[328212836,1717063833913,-500.0,0.00029128,7]
[328212837,1717063833923,-521.71,0.00029128,7]
[328212838,1717063833933,-500.0,0.00029128,7]
[328212839,1717063833942,-500.0,0.00029128,7]
[328212840,1717063833952,-149.05330288,0.00029128,7]
[328212841,1717063833973,-351.47669712,0.00029128,7]
[328212842,1717063833982,-658.35,0.00029128,7]
[328212843,1717063833992,-17.26916663,0.00029128,7]
[328212844,1717063834003,-405.7430466,0.00029128,7]
[328212848,1717063838298,-150.0,0.00028166,2]
[328212849,1717063838308,-150.0,0.00028233,2]
[328212850,1717063838318,-150.0,0.0002829,2]
[328212851,1717063838327,-116.34980186,0.00028314,2]
[328212852,1717063838338,-33.65019814,0.00028314,2]
[328212853,1717063838347,-464.70808473,0.00029127,7]
[328212854,1717063838359,-35.29191527,0.00029127,7]
[328212855,1717063838368,-76.98778677,0.00029128,7]
[328212856,1717063838377,-540.37,0.00029128,7]
[328212857,1717063838386,-500.0,0.00029128,7]
[328212858,1717063838396,-500.0,0.00029128,7]
[328212859,1717063838406,-607.31474073,0.00029128,7]
[328212860,1717063838415,-500.0,0.00029128,7]
[328212861,1717063838424,-500.0,0.00029128,7]
[328212862,1717063838434,-382.70809923,0.00029128,7]
[328212863,1717063838454,-117.29190077,0.00029128,7]
[328212864,1717063838463,-500.0,0.00029128,7]
[328212865,1717063838472,-500.0,0.00029128,7]
[328212866,1717063838482,-500.0,0.00029128,7]
[328212867,1717063838491,-500.0,0.00029128,7]
[328212868,1717063838501,-500.0,0.00029128,7]
[328212869,1717063838510,-512.07,0.00029128,7]
[328212870,1717063838520,-500.0,0.00029128,7]
[328212871,1717063838530,-500.0,0.00029128,7]
[328212872,1717063838539,-500.0,0.00029128,7]
[328212873,1717063838550,-500.0,0.00029128,7]
[328212874,1717063838559,-500.0,0.00029128,7]
[328212875,1717063838569,-529.62,0.00029128,7]
[328212876,1717063838578,-500.0,0.00029128,7]
[328212877,1717063838587,-500.0,0.00029128,7]
[328212878,1717063838597,-500.0,0.00029128,7]
[328212879,1717063838606,-500.0,0.00029128,7]
[328212880,1717063838615,-500.0,0.00029128,7]
[328212881,1717063838624,-500.0,0.00029128,7]
[328212882,1717063838634,-633.51,0.00029128,7]
[328212883,1717063838643,-250.98809923,0.00029128,7]
[328212884,1717063838833,-150.0,0.00028987,2]
[328212886,1717063838842,-249.01190077,0.00029128,7]
[328212888,1717063838852,-128.19124872,0.00029128,7]
[328212899,1717063841295,-4116.71836401,0.0002893,2]
[328212900,1717063841305,-68.76515249,0.00029039,2]
[328212901,1717063841316,-106.36409453,0.00029039,2]
[328212902,1717063841325,-2496.21088279,0.00029039,2]
[328212903,1717063841336,-309.10818092,0.00029039,2]
[328212904,1717063841348,-3611.11717467,0.00029039,2]
[328212905,1717063841358,-498.66875128,0.00029128,7]
[328212906,1717063841367,-500.0,0.00029128,7]
[328212907,1717063841376,-500.0,0.00029128,7]
[328212908,1717063841385,-531.66874852,0.00029128,7]
[328212909,1717063841395,-500.0,0.00029128,7]
[328212910,1717063841404,-500.0,0.00029128,7]
[328212911,1717063841413,-500.0,0.00029128,7]
[328212912,1717063841422,-500.0,0.00029128,7]
[328212913,1717063841431,-500.0,0.00029128,7]
[328212914,1717063841440,-500.0,0.00029128,7]
[328212915,1717063841448,-500.0,0.00029128,7]
[328212916,1717063841458,-417.90419795,0.00029128,7]
[328212917,1717063841467,-500.0,0.00029128,7]
[328212918,1717063841477,-971.6,0.00029128,7]
[328212919,1717063841486,-500.0,0.00029128,7]
[328212920,1717063841496,-500.0,0.00029128,7]
[328212921,1717063841506,-500.0,0.00029128,7]
[328212922,1717063841515,-500.0,0.00029128,7]
[328212923,1717063841524,-356.13611014,0.00029128,7]
[328212924,1717063842279,-588.89388986,0.00029128,7]
[328212925,1717063842289,-500.0,0.00029128,7]
[328212926,1717063842299,-500.0,0.00029128,7]
[328212927,1717063842310,-461.36611014,0.00029128,7]
[328212928,1717063842321,-38.63388986,0.00029128,7]
[328212929,1717063842329,-461.36611014,0.00029128,7]
[328212930,1717063842443,-38.63388986,0.00029128,7]
[328212931,1717063842453,-604.94940535,0.00029128,7]
[328212932,1717063842462,-500.0,0.00029128,7]
[328212933,1717063842471,-500.0,0.00029128,7]
[328212934,1717063842481,-87.26266479,0.00029128,7]
[328212935,1717063842492,-412.73733521,0.00029128,7]
[328212936,1717063842669,-448.46266479,0.00029128,7]
[328212937,1717063842681,-51.53733521,0.00029128,7]
[328212938,1717063842690,-569.1536201,0.00029128,7]
[328212939,1717063842700,-500.0,0.00029128,7]
[328212940,1717063842708,-500.0,0.00029128,7]
[328212941,1717063842718,-500.0,0.00029128,7]
[328212942,1717063842727,-500.0,0.00029128,2]
[328212943,1717063842738,-500.0,0.00029128,7]
[328212944,1717063842747,-500.0,0.00029128,7]
[328212945,1717063842756,-500.0,0.00029128,7]
[328212946,1717063842766,-921.56,0.00029128,7]
[328212948,1717063842775,-500.0,0.00029128,7]
[328212950,1717063842785,-536.48810433,0.00029128,7]
[328212951,1717063842794,-500.0,0.00029128,7]
[328212952,1717063842809,-500.0,0.00029128,7]
[328212953,1717063842819,-643.67,0.00029128,7]
[328212954,1717063842828,-553.59536544,0.00029128,7]
[328212955,1717063842837,-537.70476088,0.00029128,7]
[328212956,1717063842847,-500.0,0.00029128,7]
[328212958,1717063842856,-500.0,0.00029128,7]
[328212960,1717063842866,-500.0,0.00029128,7]
[328212961,1717063842875,-500.0,0.00029128,7]
[328212962,1717063842884,-500.0,0.00029128,7]
[328212963,1717063842893,-500.0,0.00029128,7]
[328212964,1717063842903,-500.0,0.00029128,7]
[328212965,1717063842911,-500.0,0.00029128,7]
[328212966,1717063842921,-500.0,0.00029128,7]
[328212967,1717063842930,-500.0,0.00029128,7]
[328212968,1717063842939,-500.0,0.00029128,7]
[328212969,1717063842949,-500.0,0.00029128,7]
[328212970,1717063842958,-602.51,0.00029128,7]
[328212971,1717063842967,-500.0,0.00029128,7]
[328212972,1717063842976,-500.0,0.00029128,7]
[328212973,1717063842985,-500.0,0.00029128,7]
[328212974,1717063842994,-500.0,0.00029128,7]
[328212975,1717063843003,-500.0,0.00029128,7]
[328212976,1717063843012,-500.0,0.00029128,7]
[328212977,1717063843021,-500.0,0.00029128,7]
[328212978,1717063843030,-500.0,0.00029128,7]
[328212979,1717063843039,-500.0,0.00029128,7]
[328212980,1717063843049,-500.0,0.00029128,7]
[328212981,1717063843059,-500.0,0.00029128,7]
[328212982,1717063843068,-1130.31,0.00029128,7]
[328212983,1717063843077,-358.25512696,0.00029128,7]
[328212984,1717063843086,-1085.48,0.00029128,7]
[328212985,1717063843096,-500.0,0.00029128,7]
[328212986,1717063843106,-233.99766303,0.00029128,7]
[328212987,1717063843115,-500.0,0.00029128,7]
[328212988,1717063843125,-500.0,0.00029128,7]
[328212989,1717063843134,-500.0,0.00029128,7]
[328212990,1717063843144,-500.0,0.00029128,7]
[328212993,1717063843153,-500.0,0.00029128,7]
[328212995,1717063843162,-500.0,0.00029128,7]
[328212997,1717063843171,-917.31,0.00029128,7]
[328212999,1717063843179,-500.0,0.00029128,7]
[328213000,1717063843188,-500.0,0.00029128,7]
[328213002,1717063843197,-549.54,0.00029128,7]
[328213003,1717063843207,-500.0,0.00029128,7]
[328213004,1717063843217,-500.0,0.00029128,7]
[328213005,1717063843226,-500.0,0.00029128,7]
[328213006,1717063843236,-500.0,0.00029128,7]
[328213007,1717063843245,-500.0,0.00029128,7]
[328213008,1717063843255,-500.0,0.00029128,7]
[328213009,1717063843264,-500.0,0.00029128,7]
[328213010,1717063843273,-487.37445161,0.00029128,7]
[328213011,1717063843285,-12.62554839,0.00029128,7]
[328213012,1717063843295,-215.0269097,0.00029129,2]
[328213013,1717063843305,-3451.347542,0.00029129,2]
[328213014,1717063843331,-424.5191321,0.00029129,2]
[328213015,1717063843344,-1508.7644094,0.00029129,2]
[328213016,1717063843355,-3218.42709984,0.00029129,2]
[328213017,1717063843365,-642.38,0.00029129,7]
[328213019,1717063843375,-500.0,0.00029129,7]
[328213021,1717063843384,-311.16434841,0.00029129,7]
[328213023,1717063843394,-500.0,0.00029129,7]
[328213025,1717063843403,-500.0,0.00029129,7]
[328213027,1717063843412,-500.0,0.00029129,2]
[328213029,1717063843421,-1007.10240862,0.00029129,2]
[328213030,1717063843432,-1260.09,0.00029129,5]
[328213031,1717063843441,-500.0,0.00029129,2]
[328213032,1717063843450,-500.0,0.00029129,7]
[328213033,1717063843459,-500.0,0.00029129,7]
[328213034,1717063843473,-500.0,0.00029129,7]
[328213035,1717063843482,-544.19406574,0.00029129,7]
[328213036,1717063843492,-500.0,0.00029129,7]
[328213037,1717063843502,-526.47528505,0.00029129,7]
[328213038,1717063843511,-500.0,0.00029129,7]
[328213039,1717063843521,-500.0,0.00029129,7]
[328213040,1717063843531,-500.0,0.00029129,7]
[328213041,1717063843540,-380.93545697,0.00029129,7]
[328213042,1717063843550,-500.0,0.00029129,7]
[328213043,1717063843561,-500.0,0.00029129,7]
[328213044,1717063843570,-500.0,0.00029129,7]
[328213045,1717063843580,-500.0,0.00029129,7]
[328213046,1717063843590,-500.0,0.00029129,7]
[328213047,1717063843599,-500.0,0.00029129,2]
[328213048,1717063843608,-132.88575301,0.00029129,7]
[328213049,1717063843676,-500.0,0.00029127,7]
[328213050,1717063843686,-367.11424699,0.00029129,7]
[328213051,1717063843695,-500.0,0.00029129,7]
[328213052,1717063843705,-500.0,0.00029129,7]
[328213053,1717063843715,-635.42899276,0.00029129,7]
[328213054,1717063843725,-500.0,0.00029129,7]
[328213055,1717063843734,-500.0,0.00029129,7]
[328213056,1717063843744,-500.0,0.00029129,7]
[328213057,1717063843754,-500.0,0.00029129,7]
[328213058,1717063843763,-500.0,0.00029129,7]
[328213059,1717063843772,-500.0,0.00029129,7]
[328213060,1717063843782,-500.0,0.00029129,7]
[328213061,1717063843792,-500.0,0.00029129,7]